fUST/lending_fUST_20250730
["ID","MTS","AMOUNT","RATE_DAILY","PERIOD"]
[376146861,1753876234067,-800.85,0.00019371,2]
[376146862,1753876234077,-460.0,0.00019371,2]
[376146863,1753876234086,-512.17,0.00019371,2]
[376146864,1753876234097,-460.0,0.00019371,2]
[376146865,1753876234107,-1380.59,0.00019371,2]
[376146866,1753876234117,-460.0,0.00019371,2]
[376146867,1753876234127,-460.0,0.00019371,2]
[376146868,1753876234137,-460.0,0.00019371,2]
[376146869,1753876234147,-460.0,0.00019371,2]
[376146870,1753876234157,-460.0,0.00019371,2]
[376146871,1753876234167,-460.0,0.00019371,2]
[376146872,1753876234177,-460.0,0.00019371,2]
[376146873,1753876234187,-460.0,0.00019371,2]
[376146874,1753876234197,-526.98,0.00019372,2]
[376146875,1753876234207,-215.00219384,0.00019372,2]
[376146876,1753876234219,-460.0,0.00019372,2]
[376146877,1753876234230,-460.0,0.00019372,2]
[376146878,1753876234239,-559.28,0.00019372,2]
[376146879,1753876234248,-576.18931405,0.00019372,2]
[376146880,1753876234258,-432.52,0.00019372,2]
[376146881,1753876234269,-460.0,0.00019372,2]
[376146882,1753876234278,-535.06132287,0.00019372,2]
[376146883,1753876234288,-460.0,0.00019372,2]
[376146884,1753876234298,-1532.58,0.00019373,2]
[376146885,1753876234308,-460.0,0.00019373,2]
[376146886,1753876234317,-460.0,0.00019373,2]
[376146887,1753876234326,-304.97831765,0.00019374,2]
[376146888,1753876234335,-599.84945326,0.00019374,2]
[376146889,1753876234345,-460.0,0.00019374,2]
[376146890,1753876234355,-484.78,0.00019374,2]
[376146891,1753876234366,-460.0,0.00019374,2]
[376146892,1753876234376,-460.0,0.00019374,2]
[376146893,1753876234386,-460.0,0.00019374,2]
[376146894,1753876234396,-460.0,0.00019374,2]
[376146895,1753876234406,-460.0,0.00019374,2]
[376146896,1753876234415,-460.0,0.00019374,2]
[376146897,1753876234425,-736.95,0.00019374,2]
[376146898,1753876234435,-460.0,0.00019374,2]
[376146899,1753876234445,-460.0,0.00019374,2]
[376146900,1753876234455,-460.0,0.00019374,2]
[376146901,1753876234464,-460.0,0.00019374,2]
[376146902,1753876234476,-601.76,0.00019374,2]
[376146903,1753876234485,-460.0,0.00019374,2]
[376146904,1753876234495,-460.0,0.00019374,2]
[376146905,1753876234504,-460.0,0.00019374,2]
[376146906,1753876234513,-460.0,0.00019374,2]
[376146907,1753876234523,-583.05,0.00019374,2]
[376146908,1753876234532,-460.0,0.00019374,2]
[376146909,1753876234541,-460.0,0.00019374,2]
[376146910,1753876234550,-460.0,0.00019374,2]
[376146911,1753876234560,-460.0,0.00019374,2]
[376146912,1753876234569,-507.68,0.00019374,2]
[376146913,1753876234578,-460.0,0.00019374,2]
[376146914,1753876234588,-460.0,0.00019374,2]
[376146915,1753876234597,-460.0,0.00019374,2]
[376146916,1753876234611,-597.18,0.00019374,2]
[376146917,1753876234621,-460.0,0.00019374,2]
[376146918,1753876234630,-460.0,0.00019374,2]
[376146919,1753876234640,-460.0,0.00019374,2]
[376146920,1753876234651,-576.14,0.00019374,2]
[376146921,1753876234660,-460.0,0.00019374,2]
[376146922,1753876234670,-460.0,0.00019374,2]
[376146923,1753876234679,-460.0,0.00019375,2]
[376146924,1753876234689,-460.0,0.00019375,2]
[376146925,1753876234698,-460.0,0.00019375,2]
[376146926,1753876234708,-460.0,0.00019375,2]
[376146927,1753876234721,-460.0,0.00019375,2]
[376146928,1753876234731,-460.0,0.00019375,2]
[376146929,1753876234740,-1670.03087497,0.00019452,2]
[376146930,1753876234750,-151.0,0.00019578,2]
[376146931,1753876234759,-389.68,0.00019644,2]
[376146932,1753876234769,-212.62,0.00019644,2]
[376146933,1753876234779,-187.3,0.00019645,2]
[376146934,1753876234788,-800.85,0.00019645,2]
[376146935,1753876234797,-151.64,0.00019645,2]
[376146936,1753876234807,-512.17,0.00019645,2]
[376146937,1753876234817,-1380.59,0.00019645,2]
[376146938,1753876234827,-183.4,0.00019645,2]
[376146939,1753876234837,-460.0,0.00019645,2]
[376146940,1753876234846,-460.0,0.00019645,2]
[376146941,1753876234856,-460.0,0.00019645,2]
[376146942,1753876234866,-460.0,0.00019645,2]
[376146943,1753876234875,-382.92290652,0.00019645,2]
[376146944,1753876234885,-460.0,0.00019645,2]
[376146945,1753876234895,-460.0,0.00019646,2]
[376146946,1753876234905,-549.91,0.00019646,2]
[376146947,1753876234915,-460.0,0.00019646,2]
[376146948,1753876234925,-460.0,0.00019646,2]
[376146949,1753876234935,-1532.58,0.00019647,2]
[376146950,1753876234945,-460.0,0.00019647,2]
[376146951,1753876234954,-460.0,0.00019647,2]
[376146952,1753876234965,-460.0,0.00019648,2]
[376146953,1753876234981,-364.10808827,0.00019648,2]
[376146954,1753876234991,-271.54,0.00019648,2]
[376146955,1753876235000,-565.42,0.00019648,2]
[376146956,1753876235009,-736.95,0.00019648,2]
[376146957,1753876235019,-152.62,0.00019648,2]
[376146958,1753876235028,-460.0,0.00019648,2]
[376146959,1753876235037,-178.9,0.00019648,2]
[376146960,1753876235047,-460.0,0.00019648,2]
[376146961,1753876235057,-460.0,0.00019648,2]
[376146962,1753876235066,-240.72,0.00019648,2]
[376146963,1753876235075,-400.46,0.00019648,2]
[376146964,1753876235085,-566.22,0.00019648,2]
[376146965,1753876235095,-460.0,0.00019648,2]
[376146966,1753876235104,-541.28,0.00019648,2]
[376146967,1753876235114,-460.0,0.00019648,2]
[376146968,1753876235124,-597.18,0.00019648,2]
[376146969,1753876235134,-460.0,0.00019648,2]
[376146970,1753876235144,-460.0,0.00019648,2]
[376146971,1753876235153,-460.0,0.00019648,2]
[376146972,1753876235163,-460.0,0.00019649,2]
[376146973,1753876235173,-460.0,0.00019649,2]
[376146974,1753876235182,-460.0,0.00019649,2]
[376146975,1753876235191,-504.68,0.00019649,2]
[376146976,1753876235200,-460.0,0.00019649,2]
[376146977,1753876235210,-1670.03087497,0.00019728,2]
[376146978,1753876235221,-800.85,0.00019919,2]
[376146979,1753876235231,-512.17,0.00019919,2]
[376146980,1753876235240,-1380.59,0.00019919,2]
[376146981,1753876235250,-460.0,0.00019919,2]
[376146982,1753876235260,-460.0,0.00019919,2]
[376146983,1753876235269,-460.0,0.00019919,2]
[376146984,1753876235278,-254.18,0.00019919,2]
[376146985,1753876235288,-239.21,0.0001992,2]
[376146986,1753876235298,-460.0,0.0001992,2]
[376146987,1753876235307,-460.0,0.0001992,2]
[376146988,1753876235317,-1532.58,0.00019921,2]
[376146989,1753876235327,-162.06,0.00019921,2]
[376146990,1753876235337,-460.0,0.00019921,2]
[376146991,1753876235347,-460.0,0.00019922,2]
[376146992,1753876235356,-736.95,0.00019922,2]
[376146993,1753876235366,-460.0,0.00019922,2]
[376146994,1753876235375,-460.0,0.00019922,2]
[376146995,1753876235384,-315.75,0.00019922,2]
[376146996,1753876235394,-597.18,0.00019922,2]
[376146997,1753876235404,-460.0,0.00019922,2]
[376146998,1753876235413,-460.0,0.00019922,2]
[376146999,1753876235423,-460.0,0.00019922,2]
[376147000,1753876235433,-460.0,0.00019923,2]
[376147001,1753876235442,-460.0,0.00019923,2]
[376147002,1753876235452,-460.0,0.00019923,2]
[376147003,1753876235462,-231.43925844,0.00019931,2]
[376147004,1753876235474,-216.14611358,0.00019931,2]
[376147005,1753876235484,-841.2246943,0.00019931,2]
[376147006,1753876235494,-160.0,0.00019931,2]
[376147007,1753876235504,-1670.03087497,0.00020003,2]
[376147008,1753876235514,-623.56,0.00020185,3]
[376147009,1753876235524,-415.7,0.00020186,3]
[376147010,1753876235646,-800.85,0.00020193,2]
[376147011,1753876235656,-512.17,0.00020193,2]
[376147012,1753876235666,-1380.59,0.00020193,2]
[376147013,1753876235678,-460.0,0.00020193,2]
[376147014,1753876235687,-330.5,0.00020193,2]
[376147015,1753876235697,-460.0,0.00020194,2]
[376147016,1753876235708,-460.0,0.00020194,2]
[376147017,1753876235717,-1532.58,0.00020195,2]
[376147018,1753876235729,-460.0,0.00020195,2]
[376147019,1753876235739,-460.0,0.00020196,2]
[376147020,1753876235749,-736.95,0.00020196,2]
[376147021,1753876235759,-343.16,0.00020196,2]
[376147022,1753876235768,-460.0,0.00020196,2]
[376147023,1753876235778,-597.18,0.00020196,2]
[376147024,1753876235787,-460.0,0.00020196,2]
[376147025,1753876235797,-460.0,0.00020196,2]
[376147026,1753876235807,-460.0,0.00020197,2]
[376147027,1753876235816,-460.0,0.00020197,2]
[376147028,1753876235827,-460.0,0.00020197,2]
[376147029,1753876235836,-1670.03087497,0.00020279,3]
[376147030,1753876235846,-342.34,0.00020457,3]
[376147031,1753876235855,-207.85,0.00020458,3]
[376147032,1753876235864,-800.85,0.00020467,2]
[376147033,1753876235874,-512.17,0.00020467,2]
[376147034,1753876235884,-1380.59,0.00020467,2]
[376147035,1753876235893,-460.0,0.00020467,2]
[376147036,1753876235903,-460.0,0.00020468,2]
[376147037,1753876235913,-460.0,0.00020468,2]
[376147038,1753876235923,-1532.58,0.00020469,2]
[376147039,1753876235933,-460.0,0.00020469,2]
[376147040,1753876235943,-460.0,0.0002047,2]
[376147041,1753876235953,-736.95,0.0002047,2]
[376147042,1753876235963,-276.22,0.0002047,2]
[376147043,1753876235976,-597.18,0.0002047,2]
[376147044,1753876235985,-460.0,0.0002047,2]
[376147045,1753876235995,-460.0,0.00020471,2]
[376147046,1753876236004,-460.0,0.00020471,2]
[376147047,1753876236014,-460.0,0.00020471,2]
[376147048,1753876236024,-1670.03087497,0.00020555,3]
[376147049,1753876236033,-306.0,0.00020658,2]
[376147050,1753876236045,-800.85,0.00020741,2]
[376147051,1753876236054,-512.17,0.00020741,2]
[376147052,1753876236063,-1380.59,0.00020741,2]
[376147053,1753876236073,-460.0,0.00020741,2]
[376147054,1753876236083,-460.0,0.00020742,2]
[376147055,1753876236092,-1532.58,0.00020743,2]
[376147056,1753876236102,-460.0,0.00020743,2]
[376147057,1753876236111,-460.0,0.00020744,2]
[376147058,1753876236121,-736.95,0.00020744,2]
[376147059,1753876236131,-597.18,0.00020744,2]
[376147060,1753876236140,-460.0,0.00020744,2]
[376147061,1753876236149,-460.0,0.00020745,2]
[376147062,1753876236159,-460.0,0.00020745,2]
[376147063,1753876236168,-304.8,0.00020745,2]
[376147064,1753876236177,-1670.03087497,0.00020831,4]
[376147065,1753876236187,-165.670204,0.00020951,2]
[376147066,1753876236197,-1000.0,0.0002098,2]
[376147067,1753876236206,-800.85,0.00021015,2]
[376147068,1753876236216,-512.17,0.00021015,2]
[376147069,1753876236230,-1380.59,0.00021015,2]
[376147070,1753876236239,-460.0,0.00021015,2]
[376147071,1753876236248,-460.0,0.00021016,2]
[376147072,1753876236257,-1532.58,0.00021017,2]
[376147073,1753876236267,-554.24,0.00021017,2]
[376147074,1753876236276,-460.0,0.00021018,2]
[376147075,1753876236285,-736.95,0.00021018,2]
[376147076,1753876236293,-597.18,0.00021018,2]
[376147077,1753876236303,-460.0,0.00021018,2]
[376147078,1753876236313,-460.0,0.00021019,2]
[376147079,1753876236322,-460.0,0.00021019,2]
[376147080,1753876236332,-200.0,0.00021083,15]
[376147081,1753876236342,-200.0,0.00021083,15]
[376147082,1753876236351,-200.0,0.00021083,15]
[376147083,1753876236361,-200.0,0.00021083,15]
[376147084,1753876236371,-200.0,0.00021083,15]
[376147085,1753876236381,-200.0,0.00021083,15]
[376147086,1753876236390,-200.0,0.00021083,15]
[376147087,1753876236400,-200.0,0.00021083,15]
[376147088,1753876236409,-200.0,0.00021083,15]
[376147089,1753876236419,-200.0,0.00021083,15]
[376147090,1753876236429,-200.0,0.00021083,15]
[376147091,1753876236439,-200.0,0.00021083,15]
[376147092,1753876236448,-200.0,0.00021083,15]
[376147093,1753876236457,-200.0,0.00021083,15]
[376147094,1753876236467,-200.0,0.00021083,15]
[376147095,1753876236479,-200.0,0.00021083,15]
[376147096,1753876236489,-200.0,0.00021083,15]
[376147097,1753876236498,-200.0,0.00021083,15]
[376147098,1753876236508,-200.0,0.00021083,15]
[376147099,1753876236518,-200.0,0.00021083,15]
[376147100,1753876236527,-200.0,0.00021083,15]
[376147101,1753876236537,-280.0,0.00021083,15]
[376147102,1753876236546,-1670.03087497,0.00021107,4]
[376147103,1753876236556,-462.9,0.00021151,3]
[376147104,1753876236565,-160.1053548,0.00021168,2]
[376147105,1753876236575,-578.1881624,0.00021168,2]
[376147106,1753876236585,-160.0,0.00021185,2]
[376147107,1753876236594,-800.85,0.00021289,2]
[376147108,1753876236604,-512.17,0.00021289,2]
[376147109,1753876236617,-1380.59,0.00021289,2]
[376147110,1753876236627,-460.0,0.00021289,2]
[376147111,1753876236636,-460.0,0.0002129,2]
[376147112,1753876236647,-1532.58,0.00021291,2]
[376147113,1753876236656,-460.0,0.00021292,2]
[376147114,1753876236666,-736.95,0.00021292,2]
[376147115,1753876236675,-597.18,0.00021292,2]
[376147116,1753876236687,-460.0,0.00021292,2]
[376147117,1753876236696,-160.73369284,0.00021292,2]
[376147118,1753876236705,-460.0,0.00021293,2]
[376147119,1753876236715,-460.0,0.00021293,2]
[376147120,1753876236728,-157.83372107,0.00021296,2]
[376147121,1753876236738,-151.0,0.00021296,2]
[376147122,1753876236746,-151.0,0.00021296,2]
[376147123,1753876236756,-199.21264675,0.00021296,2]
[376147124,1753876236765,-500.0,0.00021296,2]
[376147125,1753876236775,-151.0,0.00021296,2]
[376147126,1753876236785,-500.0,0.00021296,2]
[376147127,1753876236794,-154.42548843,0.00021296,2]
[376147128,1753876236804,-151.0,0.00021296,2]
[376147129,1753876236814,-151.0,0.00021296,2]
[376147130,1753876236825,-151.0,0.00021296,2]
[376147131,1753876236835,-151.0,0.00021296,2]
[376147132,1753876236845,-500.0,0.00021296,2]
[376147133,1753876236854,-500.0,0.00021296,2]
[376147134,1753876236864,-151.0,0.00021296,2]
[376147135,1753876236873,-151.0,0.00021296,2]
[376147136,1753876236883,-151.0,0.00021296,2]
[376147137,1753876236893,-151.0,0.00021296,2]
[376147138,1753876236903,-151.0,0.00021296,2]
[376147139,1753876236913,-151.0,0.00021296,2]
[376147140,1753876236922,-151.0,0.00021296,2]
[376147141,1753876236932,-151.0,0.00021296,2]
[376147142,1753876236942,-151.0,0.00021296,2]
[376147143,1753876236952,-151.0,0.00021296,2]
[376147144,1753876236961,-151.0,0.00021296,2]
[376147145,1753876236974,-151.0,0.00021296,2]
[376147146,1753876236984,-372.081126,0.0002136,2]
[376147147,1753876236994,-243.13681277,0.0002136,2]
[376147148,1753876237004,-866.565,0.00021364,2]
[376147149,1753876237015,-179.012,0.00021364,2]
[376147150,1753876237026,-325.0,0.00021364,2]
[376147151,1753876237036,-325.0,0.00021364,2]
[376147152,1753876237046,-325.0,0.00021364,2]
[376147153,1753876237055,-325.0,0.00021364,2]
[376147154,1753876237064,-325.0,0.00021364,2]
[376147155,1753876237074,-325.0,0.00021364,2]
[376147156,1753876237084,-325.0,0.00021364,2]
[376147157,1753876237094,-325.0,0.00021364,2]
[376147158,1753876237104,-325.0,0.00021364,2]
[376147159,1753876237113,-325.0,0.00021364,2]
[376147160,1753876237123,-325.0,0.00021364,2]
[376147161,1753876237133,-325.0,0.00021364,2]
[376147162,1753876237143,-325.0,0.00021364,2]
[376147163,1753876237153,-325.0,0.00021364,2]
[376147164,1753876237163,-316.85729207,0.00021364,2]
[376147165,1753876237173,-325.0,0.00021364,2]
[376147166,1753876237182,-325.0,0.00021364,2]
[376147167,1753876237191,-325.0,0.00021364,2]
[376147168,1753876237201,-325.0,0.00021364,2]
[376147169,1753876237210,-325.0,0.00021364,2]
[376147170,1753876237219,-325.0,0.00021364,2]
[376147171,1753876237231,-325.0,0.00021364,2]
[376147172,1753876237241,-1670.03087497,0.00021383,5]
[376147173,1753876237251,-462.9,0.00021469,4]
[376147174,1753876237261,-1002.043352,0.000215,2]
[376147175,1753876237270,-831.4,0.00021556,3]
[376147176,1753876237280,-179.78425889,0.00021559,2]
[376147177,1753876237289,-800.85,0.00021563,2]
[376147178,1753876237299,-512.17,0.00021563,2]
[376147179,1753876237308,-1380.59,0.00021563,2]
[376147180,1753876237318,-460.0,0.00021563,2]
[376147181,1753876237327,-460.0,0.00021564,2]
[376147182,1753876237337,-1532.58,0.00021565,2]
[376147183,1753876237346,-460.0,0.00021566,2]
[376147184,1753876237356,-736.95,0.00021566,2]
[376147185,1753876237366,-597.18,0.00021566,2]
[376147186,1753876237377,-460.0,0.00021566,2]
[376147187,1753876237386,-460.0,0.00021567,2]
[376147188,1753876237395,-460.0,0.00021567,2]
[376147189,1753876237404,-151.0,0.0002157,2]
[376147190,1753876237414,-152.67255641,0.0002157,2]
[376147191,1753876237423,-500.0,0.0002157,2]
[376147192,1753876237433,-500.0,0.0002157,2]
[376147193,1753876237443,-154.64654729,0.0002157,2]
[376147194,1753876237452,-152.1008972,0.0002157,2]
[376147195,1753876237461,-500.0,0.0002157,2]
[376147196,1753876237472,-500.0,0.0002157,2]
[376147197,1753876237482,-151.0,0.0002157,2]
[376147198,1753876237491,-151.0,0.0002157,2]
[376147199,1753876237501,-151.00691617,0.0002157,2]
[376147200,1753876237511,-151.0,0.0002157,2]
[376147201,1753876237520,-3487.4546367,0.00021639,2]
[376147202,1753876237529,-1670.03087497,0.00021659,5]
[376147203,1753876237539,-578.0900773,0.00021671,2]
[376147204,1753876237548,-260.0,0.00021733,2]
[376147205,1753876237557,-886.56324218,0.00021739,2]
[376147206,1753876237567,-109368.59926565,0.00021739,2]
[376147207,1753876237584,-926.1612856,0.00021739,2]
[376147208,1753876237595,-461.4225,0.00021739,2]
[376147219,1753876238563,-356.70346337,0.00019097,2]
[376147220,1753876238575,-103.29653663,0.00019097,2]
[376147221,1753876238584,-558.18298353,0.00019371,2]
[376147222,1753876238594,-205.77655287,0.00021296,2]
[376147223,1753876238608,-294.22344713,0.00021296,2]
[376147224,1753876238620,-500.0,0.0002157,2]
[376147225,1753876238630,-5208.06801534,0.00021739,2]
[376147226,1753876238642,-2460.44974454,0.00021739,2]
[376147227,1753876238661,-243.13681276,0.0002136,2]
[376147228,1753876238671,-40.72075179,0.00021739,2]
[376147229,1753876238683,-528.0,0.00021739,2]
[376147230,1753876238887,-1541.05451653,0.00021739,2]
[376147231,1753876238900,-6515.65844235,0.00021739,2]
[376147232,1753876238909,-151.0,0.00021739,2]
[376147233,1753876238919,-151.0,0.00021739,2]
[376147234,1753876238929,-151.0,0.00021739,2]
[376147235,1753876238938,-151.396745,0.00021739,2]
[376147236,1753876238948,-500.0,0.00021773,2]
[376147237,1753876238957,-500.0,0.00021773,2]
[376147238,1753876238967,-1747.82402811,0.00021777,2]
[376147248,1753876240309,-424.2059313,0.00021777,2]
[376147249,1753876240364,-460.0,0.00021777,2]
[376147250,1753876240377,-23620.23188029,0.00021777,2]
[376147251,1753876240386,-462.9,0.00021787,4]
[376147252,1753876240395,-151.0,0.000218,3]
[376147253,1753876240405,-684.68,0.00021827,3]
[376147254,1753876240418,-415.7,0.00021828,3]
[376147255,1753876240435,-800.85,0.00021837,2]
[376147256,1753876240444,-512.17,0.00021837,2]
[376147258,1753876240454,-1380.59,0.00021837,2]
[376147259,1753876240467,-460.0,0.00021837,2]
[376147261,1753876240486,-412.45,0.00021838,2]
[376147262,1753876240496,-1532.58,0.00021839,2]
[376147263,1753876240505,-460.0,0.0002184,2]
[376147264,1753876240514,-736.95,0.0002184,2]
[376147265,1753876240523,-597.18,0.0002184,2]
[376147266,1753876240532,-460.0,0.0002184,2]
[376147267,1753876240541,-460.0,0.00021841,2]
[376147268,1753876240551,-460.0,0.00021841,2]
[376147269,1753876240560,-151.0,0.00021844,2]
[376147270,1753876240569,-349.0,0.00021844,2]
[376147271,1753876240578,-349.0,0.00021844,2]
[376147272,1753876240587,-500.0,0.00021844,2]
[376147273,1753876240597,-419.70124817,0.00021844,2]
[376147274,1753876240606,-151.0,0.00021844,2]
[376147275,1753876240619,-349.0,0.00021844,2]
[376147276,1753876240627,-151.0,0.000219,2]
[376147277,1753876240637,-177.8126,0.000219,2]
[376147278,1753876240646,-177.8126,0.000219,2]
[376147279,1753876240655,-151.0,0.000219,2]
[376147280,1753876240665,-366.134372,0.000219,2]
[376147281,1753876240675,-366.134372,0.000219,2]
[376147282,1753876240684,-644.0,0.000219,2]
[376147283,1753876240693,-500.0,0.00021917,2]
[376147284,1753876240703,-500.0,0.00021917,2]
[376147285,1753876240712,-500.0,0.00021917,2]
[376147286,1753876240722,-500.0,0.00021917,2]
[376147287,1753876240733,-500.0,0.00021917,2]
[376147288,1753876240742,-500.0,0.00021917,2]
[376147289,1753876240751,-500.0,0.00021917,2]
[376147290,1753876240761,-205.82216643,0.00021917,2]
[376147291,1753876240770,-153.0,0.00021918,2]
[376147292,1753876240780,-153.0,0.00021918,2]
[376147293,1753876240789,-153.0,0.00021918,2]
[376147294,1753876240799,-153.0,0.00021918,2]
[376147295,1753876240808,-153.0,0.00021918,2]
[376147296,1753876240818,-153.0,0.00021918,2]
[376147297,1753876240828,-153.0,0.00021918,2]
[376147298,1753876240837,-153.0,0.00021918,2]
[376147299,1753876240953,-153.0,0.00021918,2]
[376147300,1753876240963,-153.0,0.00021918,2]
[376147301,1753876240974,-153.0,0.00021918,2]
[376147302,1753876240983,-153.0,0.00021918,2]
[376147303,1753876240992,-153.0,0.00021918,2]
[376147304,1753876241002,-153.0,0.00021918,2]
[376147305,1753876241011,-153.0,0.00021918,2]
[376147306,1753876241020,-153.0,0.00021918,2]
[376147307,1753876241030,-153.0,0.00021918,2]
[376147308,1753876241039,-153.0,0.00021918,2]
[376147309,1753876241049,-153.0,0.00021918,2]
[376147310,1753876241059,-153.0,0.00021918,2]
[376147311,1753876241068,-153.0,0.00021918,2]
[376147312,1753876241077,-153.0,0.00021918,2]
[376147313,1753876241087,-153.0,0.00021918,2]
[376147314,1753876241096,-153.0,0.00021918,2]
[376147315,1753876241105,-153.0,0.00021918,2]
[376147316,1753876241115,-153.0,0.00021918,2]
[376147317,1753876241124,-153.0,0.00021918,2]
[376147318,1753876241134,-153.0,0.00021918,2]
[376147319,1753876241144,-172.55653794,0.00021918,2]
[376147320,1753876241154,-1670.03087497,0.00021934,6]
[376147321,1753876241163,-325.0,0.00021958,2]
[376147322,1753876241173,-172.0,0.00021958,2]
[376147323,1753876241183,-172.0,0.00021958,2]
[376147324,1753876241194,-191.866284,0.00021974,2]
[376147325,1753876241204,-151.0,0.00022,7]
[376147326,1753876241214,-151.0,0.00022,7]
[376147327,1753876241225,-151.0,0.00022,2]
[376147328,1753876241235,-169.0,0.00022,2]
[376147329,1753876241245,-1690.98,0.00022,2]
[376147330,1753876241255,-181.0,0.00022,2]
[376147331,1753876241265,-263.0,0.00022033,2]
[376147332,1753876241275,-263.0,0.0002205,2]
[376147333,1753876241285,-151.0,0.00022072,7]
[376147334,1753876241294,-263.0,0.00022102,2]
[376147335,1753876241304,-462.9,0.00022105,4]
[376147336,1753876241313,-800.85,0.00022111,2]
[376147337,1753876241323,-512.17,0.00022111,2]
[376147338,1753876241333,-1380.59,0.00022111,2]
[376147339,1753876241343,-460.0,0.00022111,2]
[376147340,1753876241352,-1532.58,0.00022113,2]
[376147341,1753876241362,-151.0,0.00022114,7]
[376147342,1753876241372,-151.0,0.00022114,7]
[376147343,1753876241381,-151.0,0.00022114,7]
[376147344,1753876241391,-460.0,0.00022114,2]
[376147345,1753876241401,-736.95,0.00022114,2]
[376147346,1753876241412,-597.18,0.00022114,2]
[376147347,1753876241421,-460.0,0.00022114,2]
[376147348,1753876241431,-460.0,0.00022115,2]
[376147349,1753876241442,-460.0,0.00022115,2]
[376147350,1753876241455,-268.13501702,0.00022118,2]
[376147351,1753876241467,-151.0,0.00022118,2]
[376147352,1753876241479,-151.0,0.00022119,7]
[376147353,1753876241489,-157.06113176,0.00022138,2]
[376147354,1753876241499,-250.0,0.00022155,2]
[376147355,1753876241510,-1000.0,0.00022191,2]
[376147356,1753876241520,-1000.0,0.00022191,2]
[376147357,1753876241529,-1000.0,0.00022191,2]
[376147358,1753876241539,-1000.0,0.00022191,2]
[376147359,1753876241549,-1000.0,0.00022191,2]
[376147360,1753876241558,-1000.0,0.00022191,2]
[376147361,1753876241569,-807.12,0.00022191,2]
[376147362,1753876241578,-151.0,0.000222,6]
[376147363,1753876241586,-151.0,0.000222,10]
[376147364,1753876241596,-263.0,0.00022205,2]
[376147365,1753876241606,-6.79187552,0.0002221,6]
[376147366,1753876241688,-1663.23899945,0.0002221,6]
[376147367,1753876241698,-360.0,0.00022281,2]
[376147368,1753876241709,-263.0,0.00022319,2]
[376147369,1753876241718,-534.70082476,0.00022321,2]
[376147370,1753876241733,-99.34598117,0.00022321,2]
[376147371,1753876241743,-501.18513933,0.00022321,2]
[376147372,1753876241753,-1000.0,0.00022321,2]
[376147373,1753876241763,-464.56560572,0.0002233,2]
[376147374,1753876241775,-1681.43439428,0.0002233,2]
[376147375,1753876241785,-970.0,0.0002233,2]
[376147376,1753876241795,-647.876,0.0002233,2]
[376147377,1753876241805,-151.0,0.00022331,7]
[376147378,1753876241815,-151.0,0.00022331,7]
[376147379,1753876241825,-282.167749,0.00022331,7]
[376147380,1753876241835,-282.167749,0.00022331,7]
[376147381,1753876241845,-151.0,0.00022341,7]